[Event "*** Titled Tuesday Blitz"]
[Site "Chess.com"]
[Date "2020.02.04"]
[Round "8"]
[White "Dhaydon19"]
[Black "bazar-wokzal"]
[Result "1-0"]
[WhiteElo "2686"]
[BlackElo "2541"]
[TimeControl "180+2"]
[EndTime "14:50:19 PST"]
[Termination "Dhaydon19 won by resignation"]

1. e4 {[%clk 0:03:01.8]} 1... c5 {[%clk 0:03:00.6]} 2. Nc3 {[%clk 0:03:01]} 2...
g6 {[%clk 0:03:01]} 3. g3 {[%clk 0:03:02.4]} 3... Bg7 {[%clk 0:03:01.9]} 4. Bg2
{[%clk 0:03:04.3]} 4... Nc6 {[%clk 0:03:02.3]} 5. Nge2 {[%clk 0:03:06]} 5... d6
{[%clk 0:03:03.1]} 6. d3 {[%clk 0:03:06.3]} 6... Nf6 {[%clk 0:03:03.4]} 7. O-O
{[%clk 0:03:07.9]} 7... O-O {[%clk 0:03:03.9]} 8. a4 {[%clk 0:03:08.4]} 8... Rb8
{[%clk 0:03:04.1]} 9. h3 {[%clk 0:03:09.5]} 9... a6 {[%clk 0:03:04.5]} 10. Be3
{[%clk 0:03:10.1]} 10... b5 {[%clk 0:03:04.8]} 11. axb5 {[%clk 0:03:11]} 11...
axb5 {[%clk 0:03:05.9]} 12. Qd2 {[%clk 0:03:12.4]} 12... b4 {[%clk 0:03:05.5]}
13. Nd1 {[%clk 0:03:12.7]} 13... Nd7 {[%clk 0:03:02.6]} 14. Bh6 {[%clk
0:03:12.4]} 14... Bb7 {[%clk 0:03:00.6]} 15. Bxg7 {[%clk 0:03:11.7]} 15... Kxg7
{[%clk 0:03:01.7]} 16. Ne3 {[%clk 0:03:12.7]} 16... Ra8 {[%clk 0:03:02.4]} 17.
c3 {[%clk 0:03:11.7]} 17... Rxa1 {[%clk 0:02:56.7]} 18. Rxa1 {[%clk 0:03:12.1]}
18... e6 {[%clk 0:02:57.6]} 19. d4 {[%clk 0:03:12.2]} 19... Qc7 {[%clk
0:02:52.5]} 20. Rd1 {[%clk 0:03:10.3]} 20... cxd4 {[%clk 0:02:47.4]} 21. Nxd4
{[%clk 0:03:07.6]} 21... bxc3 {[%clk 0:02:42.9]} 22. Qxc3 {[%clk 0:03:05.7]}
22... e5 {[%clk 0:02:34.7]} 23. Nb5 {[%clk 0:03:03.2]} 23... Qa5 {[%clk
0:02:30.6]} 24. Nxd6 {[%clk 0:02:58.7]} 24... Qxc3 {[%clk 0:02:27]} 25. bxc3
{[%clk 0:02:59]} 25... Ba6 {[%clk 0:02:27.9]} 26. Ndf5+ {[%clk 0:02:57.3]} 26...
gxf5 {[%clk 0:02:25.7]} 27. Nxf5+ {[%clk 0:02:57.5]} 27... Kg8 {[%clk
0:02:21.7]} 28. Rxd7 {[%clk 0:02:57.3]} 28... Rb8 {[%clk 0:02:18.2]} 29. Rd6
{[%clk 0:02:57]} 29... Rb1+ {[%clk 0:02:17.9]} 30. Kh2 {[%clk 0:02:56.8]} 30...
Bb5 {[%clk 0:02:14.8]} 31. Rxc6 {[%clk 0:02:55.9]} 31... Bxc6 {[%clk 0:02:15.4]}
32. Ne7+ {[%clk 0:02:57.2]} 32... Kf8 {[%clk 0:02:12.4]} 33. Nxc6 {[%clk
0:02:59.1]} 33... f6 {[%clk 0:02:13.4]} 34. Nb4 {[%clk 0:02:56.8]} 34... Rb2
{[%clk 0:02:10.9]} 35. Kg1 {[%clk 0:02:56.5]} 35... Rb1+ {[%clk 0:02:11.6]} 36.
Bf1 {[%clk 0:02:56.8]} 36... Re1 {[%clk 0:02:12.2]} 37. Nd5 {[%clk 0:02:54.9]}
37... Kg7 {[%clk 0:02:04.9]} 38. f3 {[%clk 0:02:55.1]} 38... Rc1 {[%clk
0:02:03.7]} 39. Kf2 {[%clk 0:02:53.6]} 39... h5 {[%clk 0:02:00]} 40. h4 {[%clk
0:02:54.5]} 40... Rd1 {[%clk 0:01:55.9]} 41. Be2 {[%clk 0:02:54.4]} 41... Rc1
{[%clk 0:01:54.4]} 42. c4 {[%clk 0:02:55.2]} 42... Kg6 {[%clk 0:01:52.8]} 43. f4
{[%clk 0:02:51]} 43... exf4 {[%clk 0:01:51.4]} 44. Nxf4+ {[%clk 0:02:51.8]}
44... Kh6 {[%clk 0:01:51.6]} 45. Nxh5 {[%clk 0:02:52.5]} 45... Rc3 {[%clk
0:01:48.1]} 46. Nxf6 {[%clk 0:02:51]} 46... Kg6 {[%clk 0:01:46.6]} 47. Nd5
{[%clk 0:02:51.9]} 47... Rc1 {[%clk 0:01:46.7]} 48. Bd3 {[%clk 0:02:50.7]} 48...
Kh5 {[%clk 0:01:43.8]} 49. e5 {[%clk 0:02:49]} 1-0

[Event "*** Titled Tuesday Blitz"]
[Site "Chess.com"]
[Date "2020.02.04"]
[Round "8"]
[White "ChainsOfFantasia"]
[Black "saraswathii"]
[Result "1-0"]
[WhiteElo "2501"]
[BlackElo "2223"]
[TimeControl "180+2"]
[EndTime "14:50:39 PST"]
[Termination "ChainsOfFantasia won by resignation"]

1. d4 {[%clk 0:03:01.9]} 1... Nf6 {[%clk 0:02:59.4]} 2. Nf3 {[%clk 0:03:03.8]}
2... g6 {[%clk 0:03:00.4]} 3. c4 {[%clk 0:03:05.4]} 3... Bg7 {[%clk 0:03:01.2]}
4. Nc3 {[%clk 0:03:05.9]} 4... d6 {[%clk 0:03:02.7]} 5. e4 {[%clk 0:03:07.5]}
5... O-O {[%clk 0:03:03.8]} 6. Be2 {[%clk 0:03:09.4]} 6... e5 {[%clk 0:03:04.2]}
7. O-O {[%clk 0:03:11.3]} 7... exd4 {[%clk 0:03:05]} 8. Nxd4 {[%clk 0:03:12.1]}
8... Nbd7 {[%clk 0:03:05.7]} 9. f3 {[%clk 0:03:13.5]} 9... Nb6 {[%clk 0:03:06]}
10. Kh1 {[%clk 0:03:14.1]} 10... Qe7 {[%clk 0:03:03.7]} 11. Bg5 {[%clk 0:03:11]}
11... h6 {[%clk 0:03:03.7]} 12. Be3 {[%clk 0:03:11.1]} 12... c6 {[%clk
0:03:01.3]} 13. Qd2 {[%clk 0:03:11.2]} 13... Kh7 {[%clk 0:02:55]} 14. Rae1
{[%clk 0:03:10.9]} 14... Re8 {[%clk 0:02:45.9]} 15. b3 {[%clk 0:03:12]} 15...
Bd7 {[%clk 0:02:19.4]} 16. Bd3 {[%clk 0:03:10.4]} 16... Rad8 {[%clk 0:02:16.3]}
17. h3 {[%clk 0:03:09.6]} 17... Nh5 {[%clk 0:02:10.2]} 18. Qf2 {[%clk
0:02:59.1]} 18... Kg8 {[%clk 0:01:56.4]} 19. g4 {[%clk 0:02:53.9]} 19... Nf6
{[%clk 0:01:39.9]} 20. Qg2 {[%clk 0:02:27.5]} 20... Qf8 {[%clk 0:01:25.6]} 21.
f4 {[%clk 0:02:27.2]} 21... Nh7 {[%clk 0:01:09.1]} 22. f5 {[%clk 0:02:09.3]}
22... Nf6 {[%clk 0:01:02.7]} 23. h4 {[%clk 0:01:53.1]} 23... Nh7 {[%clk
0:00:54.7]} 24. fxg6 {[%clk 0:01:52.1]} 24... fxg6 {[%clk 0:00:52.5]} 25. Rxf8+
{[%clk 0:01:52.4]} 25... Rxf8 {[%clk 0:00:50.4]} 26. Nce2 {[%clk 0:01:44.5]} 1-0

[Event "*** Titled Tuesday Blitz"]
[Site "Chess.com"]
[Date "2020.02.04"]
[Round "8"]
[White "fusaran"]
[Black "DonBroca"]
[Result "1-0"]
[WhiteElo "2412"]
[BlackElo "2139"]
[TimeControl "180+2"]
[EndTime "14:50:46 PST"]
[Termination "fusaran won by resignation"]

1. e4 {[%clk 0:03:01.9]} 1... c5 {[%clk 0:02:58.8]} 2. f3 {[%clk 0:03:02.4]}
2... Nc6 {[%clk 0:02:54.7]} 3. Nc3 {[%clk 0:03:03.2]} 3... g6 {[%clk 0:02:55.2]}
4. Bc4 {[%clk 0:03:00.7]} 4... Bg7 {[%clk 0:02:55.2]} 5. Nge2 {[%clk 0:03:01.2]}
5... Nf6 {[%clk 0:02:55.2]} 6. d3 {[%clk 0:03:01.3]} 6... O-O {[%clk 0:02:55.6]}
7. O-O {[%clk 0:03:01.7]} 7... Na5 {[%clk 0:02:54.6]} 8. Bb3 {[%clk 0:02:58.3]}
8... Nxb3 {[%clk 0:02:54.6]} 9. axb3 {[%clk 0:03:00.2]} 9... b6 {[%clk
0:02:51.7]} 10. Be3 {[%clk 0:03:00.9]} 10... Bb7 {[%clk 0:02:52.2]} 11. Qd2
{[%clk 0:02:58.5]} 11... d5 {[%clk 0:02:52.3]} 12. exd5 {[%clk 0:02:57.5]} 12...
Nxd5 {[%clk 0:02:52.4]} 13. Nxd5 {[%clk 0:02:58.2]} 13... Bxd5 {[%clk
0:02:51.7]} 14. Nc3 {[%clk 0:02:57.7]} 14... Bc6 {[%clk 0:02:47.3]} 15. Qf2
{[%clk 0:02:53.5]} 15... Qd7 {[%clk 0:02:45.8]} 16. Rfe1 {[%clk 0:02:50.3]}
16... e6 {[%clk 0:02:45.7]} 17. Rad1 {[%clk 0:02:49.2]} 17... Rfd8 {[%clk
0:02:36.5]} 18. Ne4 {[%clk 0:02:48.7]} 18... Bxe4 {[%clk 0:02:13.6]} 19. fxe4
{[%clk 0:02:35.1]} 19... Bxb2 {[%clk 0:02:08.5]} 20. Kh1 {[%clk 0:02:33.1]}
20... Bd4 {[%clk 0:02:05.3]} 21. Rf1 {[%clk 0:02:28.1]} 21... Bxe3 {[%clk
0:01:55.8]} 22. Qxe3 {[%clk 0:02:30]} 22... Qd4 {[%clk 0:01:56.1]} 23. Qf4
{[%clk 0:02:28.2]} 23... Rd7 {[%clk 0:01:55.2]} 24. Rf3 {[%clk 0:02:26.7]} 24...
a5 {[%clk 0:01:44.6]} 25. Rdf1 {[%clk 0:02:24.7]} 25... a4 {[%clk 0:01:43.1]}
26. bxa4 {[%clk 0:02:24.4]} 26... Rxa4 {[%clk 0:01:43]} 27. Qb8+ {[%clk
0:02:22.7]} 27... Kg7 {[%clk 0:01:41.6]} 28. Qxb6 {[%clk 0:02:18.5]} 28... Rda7
{[%clk 0:01:11.1]} 29. Qc6 {[%clk 0:02:06.7]} 29... Ra1 {[%clk 0:01:08.2]} 30.
Qe8 {[%clk 0:02:04.2]} 30... Rxf1+ {[%clk 0:01:03.9]} 31. Rxf1 {[%clk
0:02:06.1]} 31... Qf6 {[%clk 0:01:03.7]} 32. Rg1 {[%clk 0:01:58.2]} 32... Ra1
{[%clk 0:00:59.7]} 33. Qd7 {[%clk 0:01:49.6]} 33... Qf2 {[%clk 0:00:56.1]} 34.
Rxa1 {[%clk 0:01:49]} 1-0

[Event "*** Titled Tuesday Blitz"]
[Site "Chess.com"]
[Date "2020.02.04"]
[Round "8"]
[White "AndrewDGreen"]
[Black "Kimster98"]
[Result "0-1"]
[WhiteElo "2263"]
[BlackElo "2682"]
[TimeControl "180+2"]
[EndTime "14:51:07 PST"]
[Termination "Kimster98 won by resignation"]

1. d4 {[%clk 0:03:01.9]} 1... Nf6 {[%clk 0:03:00.6]} 2. Nf3 {[%clk 0:03:02.7]}
2... b6 {[%clk 0:03:01.4]} 3. Bf4 {[%clk 0:03:01.6]} 3... Bb7 {[%clk 0:03:01.9]}
4. e3 {[%clk 0:02:59.6]} 4... g6 {[%clk 0:02:58.7]} 5. h3 {[%clk 0:02:58.1]}
5... Bg7 {[%clk 0:02:58.4]} 6. Be2 {[%clk 0:02:56.3]} 6... O-O {[%clk
0:02:59.6]} 7. O-O {[%clk 0:02:57]} 7... c5 {[%clk 0:03:00.6]} 8. c3 {[%clk
0:02:57.4]} 8... d5 {[%clk 0:02:50.7]} 9. Na3 {[%clk 0:02:56.1]} 9... Nc6 {[%clk
0:02:51.2]} 10. Nb5 {[%clk 0:02:52.6]} 10... a6 {[%clk 0:02:48.3]} 11. Na3
{[%clk 0:02:31.6]} 11... Nd7 {[%clk 0:02:49]} 12. Bh2 {[%clk 0:02:23]} 12... e5
{[%clk 0:02:37.5]} 13. Nxe5 {[%clk 0:02:23.5]} 13... Ndxe5 {[%clk 0:02:39.4]}
14. dxe5 {[%clk 0:02:24.5]} 14... Nxe5 {[%clk 0:02:40.2]} 15. c4 {[%clk
0:01:46]} 15... Nxc4 {[%clk 0:02:18.1]} 16. Nxc4 {[%clk 0:01:44]} 16... dxc4
{[%clk 0:02:20]} 17. Bxc4 {[%clk 0:01:42.6]} 17... b5 {[%clk 0:02:16.8]} 18. Be2
{[%clk 0:01:37.8]} 18... Qxd1 {[%clk 0:02:07.3]} 19. Rfxd1 {[%clk 0:01:36.1]}
19... Bxb2 {[%clk 0:02:08.6]} 20. Rab1 {[%clk 0:01:31.3]} 20... Bg7 {[%clk
0:02:09.1]} 21. Rd7 {[%clk 0:01:08.8]} 21... Bc6 {[%clk 0:02:08.3]} 22. Rc7
{[%clk 0:01:02.4]} 22... Rfc8 {[%clk 0:02:06.6]} 23. a4 {[%clk 0:00:35]} 23...
Rxc7 {[%clk 0:02:02.5]} 24. Bxc7 {[%clk 0:00:36.9]} 24... c4 {[%clk 0:02:04]}
25. a5 {[%clk 0:00:33.7]} 25... Rc8 {[%clk 0:01:57.2]} 26. Bb6 {[%clk 0:00:32]}
26... Be4 {[%clk 0:01:55.9]} 27. Rc1 {[%clk 0:00:31.1]} 27... c3 {[%clk
0:01:55.5]} 28. Kf1 {[%clk 0:00:26.3]} 28... c2 {[%clk 0:01:53.7]} 29. Bd4
{[%clk 0:00:27.1]} 29... Bxd4 {[%clk 0:01:38.1]} 30. exd4 {[%clk 0:00:29]} 30...
b4 {[%clk 0:01:39.7]} 31. Bxa6 {[%clk 0:00:27.6]} 31... b3 {[%clk 0:01:40.1]}
0-1

[Event "*** Titled Tuesday Blitz"]
[Site "Chess.com"]
[Date "2020.02.04"]
[Round "8"]
[White "amiralfio"]
[Black "Aygehovit1992"]
[Result "1-0"]
[WhiteElo "2539"]
[BlackElo "2647"]
[TimeControl "180+2"]
[EndTime "14:51:12 PST"]
[Termination "amiralfio won by resignation"]

1. d4 {[%clk 0:03:01.9]} 1... g6 {[%clk 0:02:55.2]} 2. c4 {[%clk 0:02:54.5]}
2... Bg7 {[%clk 0:02:55]} 3. e4 {[%clk 0:02:56]} 3... d6 {[%clk 0:02:55.6]} 4.
Nc3 {[%clk 0:02:56]} 4... e5 {[%clk 0:02:56.4]} 5. dxe5 {[%clk 0:02:57.9]} 5...
dxe5 {[%clk 0:02:57.1]} 6. Qxd8+ {[%clk 0:02:59.8]} 6... Kxd8 {[%clk 0:02:59]}
7. Bd2 {[%clk 0:03:01.5]} 7... c6 {[%clk 0:02:59.3]} 8. O-O-O {[%clk 0:03:01.5]}
8... Kc7 {[%clk 0:02:59.1]} 9. f4 {[%clk 0:02:50.8]} 9... Bg4 {[%clk 0:02:59.1]}
10. Be2 {[%clk 0:02:49.3]} 10... Bxe2 {[%clk 0:02:59]} 11. Ncxe2 {[%clk
0:02:51.2]} 11... Nd7 {[%clk 0:03:00.6]} 12. Nf3 {[%clk 0:02:52.2]} 12... Ngf6
{[%clk 0:02:57.2]} 13. fxe5 {[%clk 0:02:50.4]} 13... Nxe4 {[%clk 0:02:55.3]} 14.
Bf4 {[%clk 0:02:51.4]} 14... Ndc5 {[%clk 0:02:53]} 15. e6+ {[%clk 0:02:29.9]}
15... Kb6 {[%clk 0:02:52.4]} 16. exf7 {[%clk 0:02:30.7]} 16... Rhf8 {[%clk
0:02:50.9]} 17. Be3 {[%clk 0:02:22.1]} 17... a5 {[%clk 0:02:51.4]} 18. Rd7
{[%clk 0:02:13]} 18... Ka6 {[%clk 0:02:49.9]} 19. Rc7 {[%clk 0:01:59.3]} 19...
Rad8 {[%clk 0:02:15.5]} 20. Nf4 {[%clk 0:01:25.9]} 20... Rd7 {[%clk 0:01:56.4]}
21. Rxd7 {[%clk 0:00:49.7]} 21... Nxd7 {[%clk 0:01:58.3]} 22. Ne6 {[%clk
0:00:40.8]} 22... b5 {[%clk 0:01:53]} 23. Nxf8 {[%clk 0:00:34.1]} 23... Nxf8
{[%clk 0:01:43.9]} 24. cxb5+ {[%clk 0:00:35.3]} 24... Kxb5 {[%clk 0:01:44.2]}
25. Rd1 {[%clk 0:00:35.2]} 25... c5 {[%clk 0:01:41.9]} 26. Rd8 {[%clk 0:00:32]}
26... Kc6 {[%clk 0:01:42.9]} 27. Ng5 {[%clk 0:00:28.9]} 27... Nxg5 {[%clk
0:01:41.9]} 28. Bxg5 {[%clk 0:00:27.4]} 28... Ne6 {[%clk 0:01:42.9]} 29. Rg8
{[%clk 0:00:24.2]} 29... Kd7 {[%clk 0:01:43.8]} 30. Rxg7 {[%clk 0:00:24]} 1-0

[Event "*** Titled Tuesday Blitz"]
[Site "Chess.com"]
[Date "2020.02.04"]
[Round "8"]
[White "WPWPWP-2015"]
[Black "Kobalia"]
[Result "0-1"]
[WhiteElo "2517"]
[BlackElo "2646"]
[TimeControl "180+2"]
[EndTime "14:51:13 PST"]
[Termination "Kobalia won by resignation"]

1. e4 {[%clk 0:03:01.9]} 1... c6 {[%clk 0:02:58.8]} 2. d4 {[%clk 0:03:02.1]}
2... d5 {[%clk 0:02:59.5]} 3. e5 {[%clk 0:03:03.6]} 3... Bf5 {[%clk 0:02:59.3]}
4. Be3 {[%clk 0:03:05]} 4... e6 {[%clk 0:02:58.9]} 5. Nd2 {[%clk 0:03:03.4]}
5... Ne7 {[%clk 0:02:56.5]} 6. c4 {[%clk 0:03:00.4]} 6... Bg6 {[%clk 0:02:53.1]}
7. h4 {[%clk 0:02:57.7]} 7... h6 {[%clk 0:02:49.4]} 8. h5 {[%clk 0:02:56.4]}
8... Bh7 {[%clk 0:02:49.1]} 9. Be2 {[%clk 0:02:49.7]} 9... Nf5 {[%clk
0:02:48.4]} 10. Ngf3 {[%clk 0:02:47.9]} 10... Nxe3 {[%clk 0:02:46.3]} 11. fxe3
{[%clk 0:02:48.6]} 11... c5 {[%clk 0:02:46.3]} 12. cxd5 {[%clk 0:02:41.4]} 12...
exd5 {[%clk 0:02:46.5]} 13. O-O {[%clk 0:02:27.5]} 13... Nc6 {[%clk 0:02:46.1]}
14. Rc1 {[%clk 0:02:27.5]} 14... Qb6 {[%clk 0:02:41.2]} 15. Qb3 {[%clk
0:02:15.7]} 15... c4 {[%clk 0:02:37.9]} 16. Qxb6 {[%clk 0:02:06.4]} 16... axb6
{[%clk 0:02:38.2]} 17. a3 {[%clk 0:02:07.3]} 17... b5 {[%clk 0:02:34.5]} 18. Ne1
{[%clk 0:01:53.3]} 18... Be7 {[%clk 0:02:32.2]} 19. Bg4 {[%clk 0:01:30.2]} 19...
Bg5 {[%clk 0:02:29.2]} 20. Rf3 {[%clk 0:00:44]} 20... Nxd4 {[%clk 0:02:28.3]}
21. exd4 {[%clk 0:00:44.4]} 21... Bxd2 {[%clk 0:02:29]} 22. Rd1 {[%clk
0:00:44.3]} 22... Bg5 {[%clk 0:02:29.5]} 23. e6 {[%clk 0:00:43.7]} 23... fxe6
{[%clk 0:02:12.3]} 24. Bxe6 {[%clk 0:00:41.9]} 24... Be4 {[%clk 0:02:07.8]} 25.
Rf1 {[%clk 0:00:39.5]} 25... Ke7 {[%clk 0:02:06.3]} 26. Bf5 {[%clk 0:00:26.1]}
26... Rhf8 {[%clk 0:02:02.2]} 27. Bxe4 {[%clk 0:00:16.3]} 27... Be3+ {[%clk
0:02:01]} 28. Kh2 {[%clk 0:00:15.9]} 28... Rxf1 {[%clk 0:02:00.5]} 29. Bxd5
{[%clk 0:00:16.8]} 29... Bf2 {[%clk 0:01:58.6]} 30. Bxb7 {[%clk 0:00:15.1]}
30... Rb8 {[%clk 0:01:56.5]} 0-1

[Event "*** Titled Tuesday Blitz"]
[Site "Chess.com"]
[Date "2020.02.04"]
[Round "8"]
[White "Hrant_ChessMood"]
[Black "chessasuke"]
[Result "1-0"]
[WhiteElo "2896"]
[BlackElo "2667"]
[TimeControl "180+2"]
[EndTime "14:51:21 PST"]
[Termination "Hrant_ChessMood won by resignation"]

1. e4 {[%clk 0:03:01.4]} 1... e6 {[%clk 0:03:01.9]} 2. d4 {[%clk 0:03:02.2]}
2... d5 {[%clk 0:02:55.5]} 3. exd5 {[%clk 0:03:04.1]} 3... exd5 {[%clk
0:02:56.3]} 4. Nf3 {[%clk 0:03:06]} 4... Nf6 {[%clk 0:02:56.3]} 5. Bd3 {[%clk
0:03:06.2]} 5... Nc6 {[%clk 0:02:54.7]} 6. O-O {[%clk 0:03:06.2]} 6... Be7
{[%clk 0:02:53.5]} 7. Re1 {[%clk 0:03:06.1]} 7... O-O {[%clk 0:02:54.6]} 8. c3
{[%clk 0:03:06.5]} 8... Bg4 {[%clk 0:02:54.9]} 9. Nbd2 {[%clk 0:03:05.5]} 9...
Qd7 {[%clk 0:02:55.3]} 10. Nf1 {[%clk 0:03:06.5]} 10... Rae8 {[%clk 0:02:54.1]}
11. Ng3 {[%clk 0:02:51.5]} 11... Bd6 {[%clk 0:02:43]} 12. Bg5 {[%clk 0:02:24.2]}
12... Rxe1+ {[%clk 0:02:32.4]} 13. Qxe1 {[%clk 0:02:26.1]} 13... Re8 {[%clk
0:02:17.1]} 14. Be3 {[%clk 0:02:21.4]} 14... Bxf3 {[%clk 0:02:15.8]} 15. gxf3
{[%clk 0:02:18.9]} 15... Ne7 {[%clk 0:02:15.7]} 16. Qd2 {[%clk 0:02:08.1]} 16...
c6 {[%clk 0:02:11.4]} 17. Kh1 {[%clk 0:02:02.3]} 17... Kh8 {[%clk 0:02:00.1]}
18. Rg1 {[%clk 0:02:01.4]} 18... Qh3 {[%clk 0:01:54.3]} 19. Bf4 {[%clk
0:01:58.9]} 19... Bxf4 {[%clk 0:01:52.4]} 20. Qxf4 {[%clk 0:01:59.2]} 20... Ng6
{[%clk 0:01:52.4]} 21. Qc7 {[%clk 0:01:22.7]} 21... Nh4 {[%clk 0:01:21]} 22.
Qxf7 {[%clk 0:00:55.7]} 22... Nxf3 {[%clk 0:01:11.4]} 23. Rg2 {[%clk 0:00:55.7]}
23... Re1+ {[%clk 0:01:00.6]} 24. Nf1 {[%clk 0:00:55.9]} 24... Qh6 {[%clk
0:00:40.6]} 25. Qf8+ {[%clk 0:00:56.7]} 25... Ng8 {[%clk 0:00:41.7]} 26. Qxf3
{[%clk 0:00:58.6]} 1-0

[Event "*** Titled Tuesday Blitz"]
[Site "Chess.com"]
[Date "2020.02.04"]
[Round "8"]
[White "Indianlad"]
[Black "joshdaruca"]
[Result "0-1"]
[WhiteElo "2928"]
[BlackElo "2737"]
[TimeControl "180+2"]
[EndTime "14:51:23 PST"]
[Termination "joshdaruca won on time"]

1. e4 {[%clk 0:03:01.9]} 1... c5 {[%clk 0:02:58.6]} 2. Nc3 {[%clk 0:03:02.6]}
2... d6 {[%clk 0:02:55]} 3. f4 {[%clk 0:03:03.6]} 3... g6 {[%clk 0:02:55.3]} 4.
Nf3 {[%clk 0:03:05.2]} 4... Bg7 {[%clk 0:02:56.9]} 5. Bc4 {[%clk 0:03:06.8]}
5... Nc6 {[%clk 0:02:57.3]} 6. O-O {[%clk 0:03:08.3]} 6... e6 {[%clk 0:02:55]}
7. d4 {[%clk 0:03:09.5]} 7... cxd4 {[%clk 0:02:26.3]} 8. Nb5 {[%clk 0:03:09.2]}
8... a6 {[%clk 0:02:27]} 9. Nbxd4 {[%clk 0:03:09.8]} 9... Nxd4 {[%clk
0:02:27.7]} 10. Nxd4 {[%clk 0:03:11.7]} 10... b5 {[%clk 0:02:27.7]} 11. Bb3
{[%clk 0:03:12.2]} 11... Nf6 {[%clk 0:02:28.3]} 12. f5 {[%clk 0:03:12.5]} 12...
O-O {[%clk 0:02:24]} 13. fxe6 {[%clk 0:03:13.1]} 13... fxe6 {[%clk 0:02:24.7]}
14. Nxe6 {[%clk 0:03:11.2]} 14... Bxe6 {[%clk 0:02:23.5]} 15. Bxe6+ {[%clk
0:03:13.1]} 15... Kh8 {[%clk 0:02:25.3]} 16. Bg5 {[%clk 0:03:12.8]} 16... Qb6+
{[%clk 0:02:23.8]} 17. Kh1 {[%clk 0:03:10.3]} 17... Nxe4 {[%clk 0:02:25.1]} 18.
Bh4 {[%clk 0:03:10.4]} 18... Bxb2 {[%clk 0:02:22]} 19. c4 {[%clk 0:02:10.7]}
19... bxc4 {[%clk 0:02:19]} 20. Rb1 {[%clk 0:01:55.3]} 20... Qd4 {[%clk
0:02:08.6]} 21. Rxb2 {[%clk 0:01:20.4]} 21... Qxb2 {[%clk 0:01:59.7]} 22. Bd5
{[%clk 0:01:20.9]} 22... Nd2 {[%clk 0:01:49.5]} 23. Rf2 {[%clk 0:01:01.4]} 23...
Rxf2 {[%clk 0:01:40]} 24. Bxf2 {[%clk 0:01:03.3]} 24... Rf8 {[%clk 0:01:41]} 25.
Bg1 {[%clk 0:00:59.2]} 25... Rf1 {[%clk 0:01:37.4]} 26. Qg4 {[%clk 0:00:57.9]}
26... Rxg1+ {[%clk 0:01:27.3]} 27. Kxg1 {[%clk 0:00:57.7]} 27... Qb6+ {[%clk
0:01:28.5]} 0-1

[Event "*** Titled Tuesday Blitz"]
[Site "Chess.com"]
[Date "2020.02.04"]
[Round "8"]
[White "Teidi96"]
[Black "AleksanderHnydiuk"]
[Result "0-1"]
[WhiteElo "2329"]
[BlackElo "2559"]
[TimeControl "180+2"]
[EndTime "14:51:24 PST"]
[Termination "AleksanderHnydiuk won by resignation"]

1. e4 {[%clk 0:03:01.9]} 1... c5 {[%clk 0:03:00.6]} 2. Nf3 {[%clk 0:03:02.9]}
2... e6 {[%clk 0:03:02.1]} 3. c3 {[%clk 0:03:03.6]} 3... d5 {[%clk 0:03:02.5]}
4. exd5 {[%clk 0:03:04.3]} 4... Qxd5 {[%clk 0:03:04.4]} 5. d4 {[%clk 0:03:04.9]}
5... Nf6 {[%clk 0:03:05.6]} 6. Be3 {[%clk 0:03:03.6]} 6... cxd4 {[%clk
0:02:59.7]} 7. Qxd4 {[%clk 0:03:04.4]} 7... Nc6 {[%clk 0:02:59]} 8. Qxd5 {[%clk
0:02:57.2]} 8... Nxd5 {[%clk 0:02:59.9]} 9. Bd2 {[%clk 0:02:41.7]} 9... Be7
{[%clk 0:03:01]} 10. Bd3 {[%clk 0:02:39.7]} 10... O-O {[%clk 0:03:01.4]} 11. O-O
{[%clk 0:02:40.2]} 11... Rd8 {[%clk 0:03:00.8]} 12. Bc2 {[%clk 0:02:28.9]} 12...
b6 {[%clk 0:03:01.6]} 13. Bg5 {[%clk 0:02:26.8]} 13... f6 {[%clk 0:02:58.6]} 14.
Bh4 {[%clk 0:02:16.1]} 14... Ba6 {[%clk 0:02:49.1]} 15. Re1 {[%clk 0:02:16.4]}
15... Nf4 {[%clk 0:02:47.9]} 16. Nbd2 {[%clk 0:01:56.1]} 16... g5 {[%clk
0:02:24.6]} 17. Bg3 {[%clk 0:01:56.9]} 17... Ne2+ {[%clk 0:02:24.6]} 18. Kh1
{[%clk 0:01:52.5]} 18... g4 {[%clk 0:02:18.2]} 19. Nd4 {[%clk 0:01:40.8]} 19...
Ncxd4 {[%clk 0:02:14.9]} 20. cxd4 {[%clk 0:01:41.2]} 20... Rxd4 {[%clk
0:02:09.5]} 21. Nb3 {[%clk 0:01:38]} 21... Nxg3+ {[%clk 0:02:02.7]} 22. hxg3
{[%clk 0:01:36.9]} 22... Rd6 {[%clk 0:02:02.2]} 23. Re3 {[%clk 0:00:54.6]} 23...
Rc8 {[%clk 0:01:52.2]} 24. Bd1 {[%clk 0:00:21.3]} 24... f5 {[%clk 0:01:52.6]}
25. Be2 {[%clk 0:00:19.3]} 25... Bb7 {[%clk 0:01:53.7]} 26. Bd3 {[%clk
0:00:17.8]} 26... Bg5 {[%clk 0:01:52.2]} 27. Re2 {[%clk 0:00:16.8]} 27... Rxd3
{[%clk 0:01:51.6]} 28. Rxe6 {[%clk 0:00:17.6]} 28... Rcd8 {[%clk 0:01:36.6]} 29.
Rae1 {[%clk 0:00:17.3]} 29... Rd1 {[%clk 0:01:36.2]} 0-1